Cogmind - Beta 16.1 @@@ ROGUE MODE // 2026.02.14 @ 13:16:05 Player: Not_Jesus8 Result: Destroyed by G-50 Soldier with Heavy Laser Performance ------------- Evolutions (2) 1000 Regions Visited (7) 1400 Robots Destroyed (24) 120 Value Destroyed (556) 556 Prototype IDs (23) 460 Alien Tech Used (0) 0 Bonus (300) 300 TOTAL SCORE: 3836 Bonus ------- Aligned with FarCom 300 Cogmind --------- Core Integrity 0/550 Matter 290/300 Energy 99/100 System Corruption 3% Temperature Cool (9) Movement Core (50) Location -8/Materials Parts ------- > --- POWER (1) -------- (None) > --- PROPULSION (2) --- (None) > --- UTILITY (6) ------ Visual Processing Unit Hacking Suite Hacking Suite > --- WEAPON (2) ------- Longsword +1 > --- INVENTORY (5) ---- Structural Scanner ECM Suite Layered Light Armor Plating Shock Trap Shock Trap Peak State ------------ > --- POWER ------------ (None) > --- PROPULSION ------- (None) > --- UTILITY ---------- Visual Processing Unit Visual Processing Unit Layered Light Armor Plating Layered Light Armor Plating Hacking Suite Hacking Suite > --- WEAPON ----------- Longsword +1 > --- INVENTORY -------- Improved Terrain Scanner ECM Suite Grenade Launcher Shock Trap Shock Trap [Rating: 26] Favorites ----------- Power None Propulsion Flight Unit Flight Unit Flight Unit Utility Visual Processing Unit Device Advanced Weight Redist. System Processor Visual Processing Unit Hackware Hacking Suite Protection Layered Light Armor Plating Weapon Longsword +1 Energy Gun Small Laser Launcher Grenade Launcher Slashing Weapon Longsword +1 Build | -11 -10 -10 -9 -9 -9 -8 -8 ------- Run | Yrd Mat Min Mat Min Exi Min Mat Slots Evolved 4 | . . . 2 . . . 2 Power . | . . . . . . . . Propulsion . | . . . . . . . . Utility 4 | . . . 2 . . . 2 Weapon . | . . . . . . . . Parts Attached 15 | 3 . 2 1 2 2 . 5 Power . | . . . . . . . . Engine . | . . . . . . . . Core . | . . . . . . . . Reactor . | . . . . . . . . Propulsion 1 | . . 1 . . . . . Treads . | . . . . . . . . Leg . | . . . . . . . . Wheel . | . . . . . . . . Hover . | . . . . . . . . Flight 1 | . . 1 . . . . . Utility 11 | 2 . . 1 2 1 . 5 Device 5 | 2 . . . 1 1 . 1 Storage . | . . . . . . . . Processor 2 | . . . 1 . . . 1 Hackware 2 | . . . . 1 . . 1 Protection 2 | . . . . . . . 2 Artifact . | . . . . . . . . Weapon 3 | 1 . 1 . . 1 . . Energy Gun 1 | 1 . . . . . . . Energy Cannon . | . . . . . . . . Ballistic Gun . | . . . . . . . . Ballistic Cannon . | . . . . . . . . Launcher 1 | . . 1 . . . . . Special Weapon . | . . . . . . . . Impact Weapon . | . . . . . . . . Slashing Weapon 1 | . . . . . 1 . . Piercing Weapon . | . . . . . . . . Special Melee Weapon . | . . . . . . . . Unidentified Prototypes . | . . . . . . . . Parts Lost 3 | . . . 1 . . . 2 Power . | . . . . . . . . Propulsion . | . . . . . . . . Utility 3 | . . . 1 . . . 2 Weapon . | . . . . . . . . Highest Loss Streak 1 | . . . 1 . . . 1 To Critical Strikes . | . . . . . . . . Average Backups 3 | . 1 4 4 4 2 3 2 Power . | . . . . . . . . Propulsion . | . . . . . . . . Utility 2 | . 1 4 4 3 1 2 2 Weapon . | . . . . 1 . 1 . Tool/Special . | . . . . . . . . Unused Backups 3 | . . . 1 . 1 . 1 Power 1 | . . . . . 1 . . Propulsion . | . . . . . . . . Utility 2 | . . . 1 . . . 1 Weapon . | . . . . . . . . Tool/Special . | . . . . . . . . Average Slot Usage (%) 54 | . 42 53 48 51 69 55 52 Flight 2 | . . 3 11 11 7 . . Device 15 | . 28 28 16 14 22 22 10 Processor 13 | . . . 8 11 11 11 17 Hackware 10 | . . . . 3 11 11 13 Energy Gun 3 | . 14 14 11 11 7 . . Launcher 1 | . . 7 1 . 6 . . Slashing Weapon 6 | . . . . . 3 11 8 Peak Build Rating 26 | 5 5 6 8 11 19 19 26 Average Rating 16 | 2 5 5 7 8 14 19 20 On Entrance 9 | . 5 5 6 7 11 19 19 Avg Prop Armor Cover (%) . | . . . . . . . . Naked Turns . | . . . . . . . . Heaviest Build 11 | 3 3 3 5 3 6 4 11 Greatest Support 12 | 3 3 4 4 4 4 12 12 Greatest Overweight (x) 3 | . . . 1 . 1 1 3 Average Overweight (x) . | . . . . . . . . Largest Inventory Capacity 5 | 5 5 5 5 5 5 5 5 Average Capacity 5 | 5 5 5 5 5 5 5 5 Most Carried 5 | . 5 5 5 5 5 5 5 Average Carried 4 | . 1 4 4 4 4 5 4 Final Capacity 5 | 5 5 5 5 5 5 5 5 Final Carried 5 | . 5 5 5 5 5 5 5 Class Distribution -------------------- 43% | Mutant 28% | Hacker-Mutant 27% | Assassin Dominant Class ---------------- Mutant | -10/Materials Mutant | -10/Mines Mutant | -9/Materials Mutant | -9/Mines Mutant | -9/Exiles Assassin | -8/Mines Hacker-Mutant | -8/Materials Resources | -11 -10 -10 -9 -9 -9 -8 -8 ----------- Run | Yrd Mat Min Mat Min Exi Min Mat Matter Collected 435 | 210 19 12 . 34 . 90 70 Remotely . | . . . . . . . . Salvage Created 711 | 25 19 34 . . . . 633 Parts 45 | 4 1 8 . . . . 32 Haulers Intercepted 1 | . . . . . . . 1 Recyclers Shooed . | . . . . . . . . Parts Field Recycled . | . . . . . . . . Retrieved Matter . | . . . . . . . . Parts Self-Destructed . | . . . . . . . . Prevented . | . . . . . . . . Parts Restored . | . . . . . . . . Kills | -11 -10 -10 -9 -9 -9 -8 -8 ------- Run | Yrd Mat Min Mat Min Exi Min Mat Combat Hostiles Destroyed 15 | . . 6 . . . . 9 Melee 9 | . . . . . . . 9 AOE 6 | . . 6 . . . . . Classes Destroyed 8 | 1 1 1 . . . . 5 Builder 1 | . . . . . . . 1 Tunneler 1 | 1 . . . . . . . Hauler 1 | . . . . . . . 1 Recycler 1 | . . . . . . . 1 Mechanic 1 | . . . . . . . 1 Operator 4 | . 1 . . . . . 3 Swarmer 7 | . . 6 . . . . 1 Grunt 8 | . . . . . . . 8 Best Kill Streak 6 | 1 1 6 . . . . 6 Combat Bots Only 6 | . . 6 . . . . 5 Max Kills in Single Turn 3 | 1 1 3 . . . . 1 Gunslinging . | . . . . . . . . Exploded 3 | . . 3 . . . . . Melee 1 | . . . . . . . 1 Uniques/NPCs Destroyed . | . . . . . . . . Combat | -11 -10 -10 -9 -9 -9 -8 -8 -------- Run | Yrd Mat Min Mat Min Exi Min Mat Hostile Shots Fired 86 | . 4 8 8 5 . . 61 Missed 31 | . . 2 5 2 . . 22 Hits 55 | . 4 6 3 3 . . 39 Projectile 55 | . 4 6 3 3 . . 39 Critical Strikes 5 | . . . 1 . . . 4 Damage Taken 880 | . 52 54 44 36 . . 694 Core 651 | . 29 6 14 36 . . 566 Absorbed by Shields . | . . . . . . . . Core Remaining (%) 91 | 100 . 86 . . . 87 . Volleys Fired 12 | 4 3 4 1 . . . . Largest 1 | 1 1 1 1 . . . . Hottest 40 | 40 40 30 30 . . . . Shots Fired 12 | 4 3 4 1 . . . . Gun 7 | 4 3 . . . . . . Cannon . | . . . . . . . . Launcher 5 | . . 4 1 . . . . Special . | . . . . . . . . Kinetic . | . . . . . . . . Thermal 7 | 4 3 . . . . . . Explosive 5 | . . 4 1 . . . . Electromagnetic . | . . . . . . . . Robot Hit Streak 5 | 1 4 5 . . . . . Robot Miss Streak 2 | 2 . . . . . . . Penetration Max . | . . . . . . . . Secondary Targets . | . . . . . . . . Shots Hit Robots 34 | 2 3 1 . . . . 28 Core Hits 22 | 1 2 7 . . . . 12 Critical Kills . | . . . . . . . . Critical Parts Destroyed . | . . . . . . . . Critical Strikes 4 | . . . . . . . 4 Sever 4 | . . . . . . . 4 Melee Attacks 56 | . . . . . . . 56 Impact . | . . . . . . . . Slashing 56 | . . . . . . . 56 Piercing . | . . . . . . . . Sneak Attacks 9 | . . . . . . . 9 Combat Hostiles 1 | . . . . . . . 1 Follow-up Attacks . | . . . . . . . . Damage Inflicted 2181 | 22 32 311 . . . . 1816 Guns 54 | 22 32 . . . . . . Cannons . | . . . . . . . . Explosions 311 | . . 311 . . . . . Melee 1809 | . . . . . . . 1809 Ramming 7 | . . . . . . . 7 Kinetic . | . . . . . . . . Thermal 54 | 22 32 . . . . . . Explosive 311 | . . 311 . . . . . Electromagnetic . | . . . . . . . . Impact . | . . . . . . . . Slashing 1809 | . . . . . . . 1809 Piercing . | . . . . . . . . Highest Corruption 3 | . . . . . . . 3 Average Corruption 3 | . . . . . . . 3 Corruption Purged . | . . . . . . . . Corruption Blocked . | . . . . . . . . Overload Shots . | . . . . . . . . Overflow Damage 257 | . . . . . . . 257 Projectiles . | . . . . . . . . Explosions . | . . . . . . . . Melee 257 | . . . . . . . 257 Knockbacks . | . . . . . . . . Impact . | . . . . . . . . Kinetic . | . . . . . . . . Secondary . | . . . . . . . . Self-Inflicted Damage 17 | . . 14 . . . . 3 Shots 1 | . . 1 . . . . . Rammed 2 | . . . . . . . 2 Targets Rammed 2 | . . . . . . . 2 Kicked . | . . . . . . . . Crushed . | . . . . . . . . Highest Temperature 15 | 15 . . 3 . . . 5 Average Temperature 7 | 10 . . 3 . . . 5 Received Heat Transfer 501 | . 30 . 36 21 . . 414 Siege Activations . | . . . . . . . . Martial Activations . | . . . . . . . . Shielding Activations . | . . . . . . . . Robots Disrupted . | . . . . . . . . Combat Hostiles . | . . . . . . . . Robots Corrupted . | . . . . . . . . Combat Hostiles . | . . . . . . . . Parts Fried . | . . . . . . . . Impact Corruptions . | . . . . . . . . Robots Melted . | . . . . . . . . Combat Hostiles . | . . . . . . . . Parts Melted . | . . . . . . . . Heat Transferred 125 | 50 75 . . . . . . Parts Sabotaged . | . . . . . . . . Parts Stolen . | . . . . . . . . Parts Stripped . | . . . . . . . . Power Chain Reactions . | . . . . . . . . Alert | -11 -10 -10 -9 -9 -9 -8 -8 ------- Run | Yrd Mat Min Mat Min Exi Min Mat Maximum Alert Level 1 | . . . . . . . 1 Low Security (%) 79 | 100 100 100 100 100 . 100 65 Level 1 20 | . . . . . . . 34 Level 2 . | . . . . . . . . Level 3 . | . . . . . . . . Level 4 . | . . . . . . . . Level 5 . | . . . . . . . . High Security . | . . . . . . . . Max Security . | . . . . . . . . Peak Influence 392 | 5 5 160 81 31 . . 392 Initial 58 | . . . 58 31 . . . Average 97 | 1 . 137 49 11 . . 155 Influence Increases 893 | 5 5 160 63 30 . . 630 Destroy 0b10 Robot/C 300 | . . 120 . . . . 180 Destroy 0b10 Robot/NC 45 | 5 5 . . . . . 35 Destroy Leader 52 | . . 20 . . . . 32 Successful Hack 26 | . . . 8 . . . 18 Select Force Hacks 60 | . . . . . . . 60 Disable Machine 15 | . . . . . . . 15 Destroy Structure 50 | . . 20 10 . . . 20 Lose Combat Pursuer 345 | . . . 45 30 . . 270 Influence Decreases 875 | 5 5 10 132 111 . . 612 Entered New Map 142 | . . . 92 50 . . . Time Decay 396 | 5 5 10 30 61 . . 285 Search Patrol Dispatched 100 | . . . . . . . 100 Lost Part 30 | . . . 10 . . . 20 Purge Threat 207 | . . . . . . . 207 Squads Dispatched 8 | . 1 . . . . . 7 Investigation 3 | . . . . . . . 3 Extermination . | . . . . . . . . Reinforcement 5 | . 1 . . . . . 4 Assault . | . . . . . . . . Garrison . | . . . . . . . . Intercept . | . . . . . . . . Searches Triggered 1 | . . . . . . . 1 Construction Impeded 1 | . . . . . . . 1 Haulers Reinforced . | . . . . . . . . Active Scanning Responses . | . . . . . . . . Cargo Convoy Interrupts . | . . . . . . . . Stealth | -11 -10 -10 -9 -9 -9 -8 -8 --------- Run | Yrd Mat Min Mat Min Exi Min Mat Distress Signals 4 | . . . 1 . . . 3 Communications Jammed . | . . . . . . . . Distress Signals . | . . . . . . . . Times Spotted 63 | . 3 6 7 4 . . 43 Peak Tracking Total 13 | . 2 3 8 2 . . 13 Tactical Retreats 9 | . . . 2 1 . . 6 Traps | -11 -10 -10 -9 -9 -9 -8 -8 ------- Run | Yrd Mat Min Mat Min Exi Min Mat Traps Triggered . | . . . . . . . . Indirectly . | . . . . . . . . Trap Hack Attempts . | . . . . . . . . Triggered . | . . . . . . . . Disarmed . | . . . . . . . . Reprogrammed . | . . . . . . . . Reused . | . . . . . . . . Traps Extracted . | . . . . . . . . Installed . | . . . . . . . . Triggered . | . . . . . . . . Most Traps Carried 2 | . . . . 2 2 2 2 Machines | -11 -10 -10 -9 -9 -9 -8 -8 ---------- Run | Yrd Mat Min Mat Min Exi Min Mat Machines Disabled 1 | . . . . . . . 1 Max in Single Turn 1 | . . . . . . . 1 Machines Repaired . | . . . . . . . . Machines Dismantled . | . . . . . . . . Machines Sabotaged . | . . . . . . . . Overloaded Fab Kills . | . . . . . . . . Hacking | -11 -10 -10 -9 -9 -9 -8 -8 --------- Run | Yrd Mat Min Mat Min Exi Min Mat Machines Accessed 11 | . 1 . 2 . 1 . 7 Terminals 7 | . 1 . 2 . . . 4 Fabricators . | . . . . . . . . Repair Stations . | . . . . . . . . Recycling Units 2 | . . . . . . . 2 Scanalyzers 1 | . . . . . . . 1 Garrison Access . | . . . . . . . . Total Hacks 32 | . 2 . 5 . 1 . 24 Successful 21 | . 1 . 1 . 1 . 18 Failed 11 | . 1 . 4 . . . 6 Catastrophic 2 | . . . 2 . . . . Database Lockouts . | . . . . . . . . Manual 28 | . . . 5 . 1 . 22 Terminals 27 | . 2 . 5 . . . 20 Fabricators . | . . . . . . . . Repair Stations . | . . . . . . . . Recycling Units 2 | . . . . . . . 2 Scanalyzers 2 | . . . . . . . 2 Garrison Access . | . . . . . . . . Terminal Hacks 9 | . 1 . 1 . 1 . 6 Level Access Points 1 | . . . . . . . 1 Branch Access Points 1 | . . . 1 . . . . Terminal Index 1 | . . . . . . . 1 Alert Level 1 | . . . . . . . 1 Unreport Threat 2 | . . . . . . . 2 Patrol Status 1 | . . . . . . . 1 Zone Layout 1 | . 1 . . . . . . Proto ID Catalog 1 | . . . . . 1 . . Fabricator Hacks . | . . . . . . . . Repair Station Hacks . | . . . . . . . . Recycling Unit Hacks . | . . . . . . . . Scanalyzer 2 | . . . . . . . 2 Insert Component 1 | . . . . . . . 1 Retrieve Study 1 | . . . . . . . 1 Garrison Access Hacks . | . . . . . . . . Unauthorized Hacks 10 | . . . . . . . 10 Terminals 8 | . . . . . . . 8 Botnet 4 | . . . . . . . 4 Operators 1 | . . . . . . . 1 Skim 3 | . . . . . . . 3 Fabricators . | . . . . . . . . Repair Stations . | . . . . . . . . Recycling Units 2 | . . . . . . . 2 Tunnel 2 | . . . . . . . 2 Scanalyzers . | . . . . . . . . Garrison Access . | . . . . . . . . Data Cores Recovered . | . . . . . . . . Used . | . . . . . . . . Hacking Detections 7 | . 1 . 2 . . . 4 Full Trace Events 2 | . . . 1 . . . 1 Feedback Events . | . . . . . . . . Feedback Blocked . | . . . . . . . . Robot Schematics Acquired . | . . . . . . . . Robots Built . | . . . . . . . . Authchips . | . . . . . . . . Time . | . . . . . . . . Total Robot Build Rating . | . . . . . . . . Part Schematics Acquired . | . . . . . . . . Parts Built . | . . . . . . . . Authchips . | . . . . . . . . Time . | . . . . . . . . Total Part Build Rating . | . . . . . . . . Part Studies Acquired 1 | . . . . . . . 1 Parts Repaired . | . . . . . . . . Time . | . . . . . . . . Parts Recycled . | . . . . . . . . Recycled Matter . | . . . . . . . . Retrieved Matter . | . . . . . . . . Retrieved Components . | . . . . . . . . Parts Scanalyzed . | . . . . . . . . Part Schematics Acquired . | . . . . . . . . Parts Damaged . | . . . . . . . . Bothacking | -11 -10 -10 -9 -9 -9 -8 -8 ------------ Run | Yrd Mat Min Mat Min Exi Min Mat Used RIF Installer . | . . . . . . . . Robots Hacked . | . . . . . . . . Non-combat . | . . . . . . . . Combat . | . . . . . . . . Robot Hacks Applied . | . . . . . . . . Relay Couplers Released . | . . . . . . . . Fabnet Peak Effective % . | . . . . . . . . Robots Rewired . | . . . . . . . . Allies Hacked . | . . . . . . . . Hacks Repelled . | . . . . . . . . Allies | -11 -10 -10 -9 -9 -9 -8 -8 -------- Run | Yrd Mat Min Mat Min Exi Min Mat Total Allies . | . . . . . . . . Largest Group . | . . . . . . . . Highest-Rated Group . | . . . . . . . . Highest-Rated Ally . | . . . . . . . . Total Orders . | . . . . . . . . Ally Attacks . | . . . . . . . . Total Damage . | . . . . . . . . Kills . | . . . . . . . . Allies Corrupted . | . . . . . . . . Allies Melted . | . . . . . . . . Intel | -11 -10 -10 -9 -9 -9 -8 -8 ------- Run | Yrd Mat Min Mat Min Exi Min Mat Active Infowar (turns) 1902 | 21 83 27 74 193 245 259 1000 Optics 1763 | . . . 66 193 245 259 1000 Terrain 844 | 19 83 27 74 193 163 259 26 Structural 496 | . . . . 74 161 . 261 Seismic 161 | 21 83 27 30 . . . . ECM 1 | . . . . . . . 1 Robot Analysis Total . | . . . . . . . . Derelict Logs Recovered 2 | . . . . 2 . . . Drone Launches . | . . . . . . . . Drone Recoveries . | . . . . . . . . Exploration | -11 -10 -10 -9 -9 -9 -8 -8 ------------- Run | Yrd Mat Min Mat Min Exi Min Mat Turns Passed 1932 | 51 83 27 74 193 245 259 1000 Spaces Moved 1913 | 55 144 37 163 461 231 265 557 Core 1109 | 55 144 9 . . 79 265 557 Treads . | . . . . . . . . Legs . | . . . . . . . . Wheels . | . . . . . . . . Hover . | . . . . . . . . Flight 804 | . . 28 163 461 152 . . Fastest Speed 40 | 50 50 40 40 40 40 50 50 Average Speed 62 | 50 50 42 41 40 101 97 59 Slowest Speed 200 | 50 50 50 120 40 120 100 200 Overloaded Moves . | . . . . . . . . Propulsion Burnouts . | . . . . . . . . Robots Hopped 7 | . . 1 1 5 . . . Potential Cave-ins 5 | . . . . . . . 5 Cave-ins Triggered 1 | . . . . . . . 1 Exploration Rate (%) 43 | 4 37 13 33 85 61 69 49 Regions Visited 7 Branch Regions 4 Pre-discovered Areas 2 | . . . . . . . 2 Known Exits Taken 1 | . . . 1 . . . . Unknown Exits Taken 6 | 1 1 1 . 1 1 1 . Scrap Searched 2 | . . . . 1 . 1 . Spaces Dug 26 | . . . . . . . 26 Terrain Destroyed 68 | . . 33 9 . . . 26 Melee 26 | . . . . . . . 26 Projectile . | . . . . . . . . AOE 42 | . . 33 9 . . . . Terrain Rammed . | . . . . . . . . Walls Destroyed . | . . . . . . . . Machines Disabled . | . . . . . . . . Actions | -11 -10 -10 -9 -9 -9 -8 -8 --------- Run | Yrd Mat Min Mat Min Exi Min Mat Total 2572 | 72 151 42 167 463 244 265 1168 Wait 550 | 11 . . . 4 . 1 534 Move 1892 | 54 143 34 160 450 230 264 557 Hop 7 | . . 1 1 5 . . . Pick Up 15 | . 5 . 1 2 5 . 2 Fast Attach 10 | 3 . 1 1 . . . 5 Attach 8 | . . 1 1 2 3 . 1 Detach 4 | . . 1 1 . . . 2 Swap 3 | . . . . . . . 3 Drop 13 | . . . 1 . 6 . 6 Fire 12 | 4 3 4 1 . . . . Melee 56 | . . . . . . . 56 Ram 2 | . . . . . . . 2 Kick . | . . . . . . . . Crush . | . . . . . . . . Escape Stasis . | . . . . . . . . Rewire . | . . . . . . . . Trap . | . . . . . . . . Miscellaneous . | . . . . . . . . Route ------- -11/Scrapyard -10/Materials (discovered 2 exits: [*Min x2]) -10/Mines -9/Materials (discovered 2 exits: *Min x2) -9/Mines (discovered 2 exits: *Mat / *Exi) -9/Exiles (discovered 2 exits: [*Min x2]) -8/Mines -8/Materials (discovered 3 exits: Fac x3) History --------- Turn | Location | Event 4 | -11/Scrapyard | Discovered new exit (range 14) 52 | -11/Scrapyard | Entered Materials 66 | -10/Materials | Discovered new exit (range 3) 128 | -10/Materials | Discovered new exit (range 9) 135 | -10/Materials | Entered Mines 158 | -10/Mines | Discovered new exit (range 10) 162 | -10/Mines | Entered Materials 162 | -9/Materials | Evolved 2 slots: Utility x2 191 | -9/Materials | Discovered new exit (range 4) 214 | -9/Materials | Identified exit to Mines 236 | -9/Materials | Entered Mines 244 | -9/Mines | Met a Derelict bent on vengeance 295 | -9/Mines | Discovered new exit (range 11) 311 | -9/Mines | Build established: Mutant 354 | -9/Mines | Found a hidden stash of uninstalled traps 366 | -9/Mines | Learned Materials terminal intel 388 | -9/Mines | Learned Materials security intel 427 | -9/Mines | Deemed a non-threat by the Exiles lab entrance 427 | -9/Mines | Discovered new exit (range 6) 429 | -9/Mines | Entered Exiles 435 | -9/Exiles | Discovered new exit (range 16) 440 | -9/Exiles | Met 8R-AWN 475 | -9/Exiles | Met EX-HEX 511 | -9/Exiles | Met EX-BIN 525 | -9/Exiles | Aligned with FarCom system 527 | -9/Exiles | Given EX-Vault access code 555 | -9/Exiles | Opened EX-Vault 565 | -9/Exiles | Found Longsword +1 590 | -9/Exiles | Warned to stay clear of 0b10 Research branches 625 | -9/Exiles | Met EX-DEC 664 | -9/Exiles | Discovered new exit (range 10) 674 | -9/Exiles | Left Exiles lab with Longsword +1 674 | -9/Exiles | Entered Mines 924 | -8/Mines | Discovered new exit (range 8) 933 | -8/Mines | Entered Materials 933 | -8/Materials | Evolved 2 slots: Utility x2 935 | -8/Materials | Loaded intel: 12 terminal locations 980 | -8/Materials | Build established: Assassin 1397 | -8/Materials | Identified exit to Factory 1686 | -8/Materials | Build established: Hacker-Mutant 1733 | -8/Materials | Search patrols dispatched 1901 | -8/Materials | Crushed by falling debris 1908 | -8/Materials | Core integrity fell below 50% 1917 | -8/Materials | Core integrity fell below 20% 1933 | -8/Materials | Destroyed by G-50 Soldier with Heavy Laser Last Messages --------------- 01901_ Visual Processing Unit destroyed. 01901_ System corrupted by crushing effect (+3). 01916_ C-30 ARC bursts open, deploying its payload. 01916_ G-50 Soldier unfolds itself. 01916_ G-47 Trooper unfolds itself. 01916_ Critical hit (Burn: +37). 01916_ Slammed into G-47 Trooper. 01916_ Adv. Weight Redist. System broken. 01916_ Destabilizing: Short circuit. 01917_ Slammed into G-47 Trooper. 01918_ Critical hit (Burn: +37). 01924_ Dropped Broken Adv. Weight Redist. System. 01924_ R-06 Scavenger collects Broken Adv. Weight Redist. System. 01932_ C-30 ARC bursts open, deploying its payload. 01932_ G-50 Soldier unfolds itself. 01932_ G-47 Trooper unfolds itself. Map ----- +----------------------------------------------------+ | #??# #?????????????# / ! #???????? | | #### #?????????????# # #???????? | | #?????????????# # #???????? | | ######?????????????# ## ##???????? | | #??????????????????# "" " #????????? | | #??????????????????#######"###"%"#????????? | | #????????????????????????###?# " #####????? | | ########?????????????????????# #??? | | ?????????????????# ##### #??? | | ????????????????# #????????? | | ?????????????????##g##????????? | | ############ ??????????????????# #?????????? | | ????????????????Y??????????????#g#?????????? | | ???????????????????????????????#g#?????????? | | ???????????????????????????????# #?????????? | | ???????????????????+############g#?????????? | | ???????????????????? # #?????????? | | ?????????????Y???????g # #?????????? | | ??????????????????????g # #?????????? | | ?????????????g????????#g + #?????????? | | ??????????????????????# # #?????????? | | ??????????????????????#gg # #?????????? | | ??????????????????????#g #"######?????????? | | ??????????????????????# ;##??????????????? | | ??????????????????????# ##???????????????? | | ??????????????????????# @#????????????????? | | ??????????????????????# a#????????????????? | | ?????????????o????????# #????????????????? | | ??????????????????????# #????????????????? | | ??????????????????????# #????????????????? | | ??????????????????????# #????????????????? | | ??????????????????????# #????????????????? | | ??????????????????????# #s???????????????? | | ??????????????????????# /s???????????????? | | ??????????????????????# #ss??????????????? | | ??????????????????????# ?????????????????? | | ?????????????????????? ?????????????????? | | ?????"???????????????? ?????????????????? | | ?????T???????????????? ??